lending/lending_fUSD_20251018
["ID","MTS","AMOUNT","RATE_DAILY","PERIOD"]
[391727799,1760754650648,-800.0,0.00036842,7]
[391727800,1760754650658,-14014.6364035,0.00036843,3]
[391727801,1760754650667,-176.0,0.00036853,2]
[391727802,1760754650676,-1213.4,0.00036853,2]
[391727803,1760754650685,-168.42,0.00036853,2]
[391727804,1760754650694,-546.8,0.00036853,2]
[391727805,1760754650704,-413.73,0.00036853,2]
[391727806,1760754650714,-546.8,0.00036853,2]
[391727807,1760754650724,-833.69,0.00036853,2]
[391727808,1760754650733,-413.73,0.00036853,2]
[391727809,1760754650742,-546.8,0.00036853,2]
[391727810,1760754650752,-413.73,0.00036853,2]
[391727811,1760754650762,-150.0,0.00036855,7]
[391727812,1760754650771,-150.0,0.00036855,7]
[391727813,1760754650781,-150.0,0.00036855,7]
[391727814,1760754650790,-150.0,0.00036855,7]
[391727815,1760754650799,-150.0,0.00036855,7]
[391727816,1760754650813,-150.0,0.00036855,7]
[391727817,1760754650823,-150.0,0.00036855,7]
[391727818,1760754650832,-150.0,0.00036855,7]
[391727819,1760754650841,-485.31,0.00036856,2]
[391727820,1760754650851,-176.09,0.00036856,2]
[391727821,1760754650859,-176.09,0.00036856,2]
[391727822,1760754650868,-179.83,0.00036856,2]
[391727823,1760754650878,-176.09,0.00036856,2]
[391727824,1760754650887,-176.09,0.00036856,2]
[391727825,1760754650896,-176.09,0.00036856,2]
[391727826,1760754650905,-176.09,0.00036856,2]
[391727827,1760754650915,-176.09,0.00036856,2]
[391727828,1760754650926,-176.09,0.00036856,2]
[391727829,1760754650937,-28029.2728071,0.00036879,3]
[391727830,1760754650949,-27321.6829393,0.00036889,2]
[391727831,1760754650959,-28315.9095391,0.00036889,2]
[391727832,1760754650967,-1591.8174608,0.00036889,2]
[391727833,1760754650976,-261.92294,0.00036889,120]
[391727834,1760754650985,-151.0,0.00036889,120]
[391727835,1760754650994,-151.0,0.00036889,120]
[391727836,1760754651003,-151.0,0.00036889,120]
[391727837,1760754651012,-151.0,0.00036889,120]
[391727838,1760754651021,-151.0,0.00036889,30]
[391727839,1760754651030,-151.0,0.00036889,120]
[391727840,1760754651040,-151.0,0.00036889,120]
[391727841,1760754651048,-151.0,0.00036889,120]
[391727842,1760754651058,-289.3062,0.00036889,120]
[391727843,1760754651067,-151.0,0.00036889,120]
[391727844,1760754651077,-151.0,0.00036889,120]
[391727845,1760754651086,-151.0,0.00036889,120]
[391727846,1760754651096,-153.740189,0.00036889,120]
[391727847,1760754651106,-14354.319918,0.00036889,2]
[391727848,1760754651115,-151.0,0.00036889,120]
[391727849,1760754651124,-151.0,0.00036889,120]
[391727850,1760754651134,-151.0,0.00036889,120]
[391727851,1760754651143,-151.0,0.00036889,120]
[391727852,1760754651152,-152.615496,0.00036889,120]
[391727853,1760754651162,-151.0,0.00036889,120]
[391727854,1760754651171,-152.615496,0.00036889,120]
[391727855,1760754651181,-152.615496,0.00036889,120]
[391727856,1760754651190,-152.615496,0.00036889,120]
[391727857,1760754651200,-151.0,0.00036889,120]
[391727858,1760754651209,-151.0,0.00036889,120]
[391727859,1760754651219,-1116.5471233,0.00036889,2]
[391727860,1760754651228,-477.544422,0.00036889,2]
[391727861,1760754651237,-14014.6364035,0.000369,3]
[391727862,1760754651247,-13886.08893262,0.0003691,2]
[391727863,1760754651256,-150.0,0.00036917,7]
[391727864,1760754651265,-150.0,0.00036969,7]
[391727865,1760754651273,-492.370403,0.00036989,2]
[391727866,1760754651282,-14014.6364035,0.0003699,3]
[391727867,1760754651293,-1000.0,0.00037,2]
[391727868,1760754651302,-5661.0,0.00037,117]
[391727869,1760754651311,-1000.0,0.00037,2]
[391727870,1760754651321,-1000.0,0.00037,2]
[391727871,1760754651330,-1000.0,0.00037,2]
[391727872,1760754651339,-1000.0,0.00037,2]
[391727873,1760754651347,-1000.0,0.00037,2]
[391727874,1760754651356,-1000.0,0.00037,2]
[391727875,1760754651365,-1000.0,0.00037,2]
[391727876,1760754651375,-1000.0,0.00037,2]
[391727877,1760754651384,-1000.0,0.00037,2]
[391727878,1760754651394,-151.0,0.00037,120]
[391727879,1760754651403,-313.060149,0.00037,120]
[391727880,1760754651412,-313.060149,0.00037,120]
[391727881,1760754651421,-313.060149,0.00037,120]
[391727882,1760754651431,-313.060149,0.00037,120]
[391727883,1760754651439,-153.423251,0.00037,120]
[391727884,1760754651448,-153.423251,0.00037,120]
[391727885,1760754651457,-153.423251,0.00037,120]
[391727886,1760754651467,-153.423251,0.00037,120]
[391727887,1760754651476,-1242.29765712,0.00037,30]
[391727888,1760754651485,-267.677565,0.00037,120]
[391727889,1760754651494,-267.677565,0.00037,120]
[391727890,1760754651503,-267.677565,0.00037,120]
[391727891,1760754651512,-267.677565,0.00037,120]
[391727892,1760754651521,-1822.58722,0.0003701,2]
[391727893,1760754651531,-150.0,0.00037016,7]
[391727894,1760754651541,-21704.54690313,0.0003702,2]
[391727895,1760754651551,-150.0,0.00037031,7]
[391727896,1760754651560,-150.0,0.00037043,7]
[391727897,1760754651570,-1425.0,0.00037075,2]
[391727898,1760754651579,-151.0,0.000371,120]
[391727899,1760754651589,-898.28,0.000371,30]
[391727900,1760754651599,-14014.6364035,0.00037106,3]
[391727901,1760754651607,-900.0,0.00037116,7]
[391727902,1760754651616,-2600.0,0.00037116,7]
[391727903,1760754651625,-306.28347076,0.00037123,2]
[391727904,1760754651634,-1425.0,0.00037127,2]
[391727906,1760754651643,-150.0,0.00037132,7]
[391727907,1760754651652,-1091.0,0.00037141,5]
[391727908,1760754651661,-1000.0,0.00037161,7]
[391727909,1760754651670,-150.0,0.00037168,7]
[391727911,1760754651679,-1425.0,0.00037173,2]
[391727912,1760754651689,-150.0,0.00037178,7]
[391727913,1760754651698,-150.0,0.00037178,7]
[391727914,1760754651708,-1425.0,0.00037183,2]
[391727915,1760754651717,-1425.0,0.00037192,2]
[391727916,1760754651726,-150.0,0.00037197,7]
[391727917,1760754651735,-186.53821698,0.000372,120]
[391727918,1760754651743,-186.53821696,0.000372,120]
[391727919,1760754651752,-186.53821696,0.000372,120]
[391727920,1760754651761,-186.53821696,0.000372,120]
[391727921,1760754651770,-1425.0,0.0003724,2]
[391727922,1760754651779,-150.0,0.00037243,7]
[391727923,1760754651789,-1000.0,0.0003726,7]
[391727924,1760754651798,-1000.0,0.00037262,7]
[391727925,1760754651808,-565.64512163,0.00037262,7]
[391727926,1760754651819,-42043.9092106,0.00037269,3]
[391727927,1760754651828,-151.0,0.00037279,120]
[391727928,1760754651838,-151.0,0.00037279,120]
[391727929,1760754651847,-151.0,0.00037279,120]
[391727930,1760754651856,-389.687032,0.00037279,120]
[391727931,1760754651865,-389.687032,0.00037279,120]
[391727932,1760754651873,-151.0,0.00037279,120]
[391727933,1760754651884,-151.0,0.00037279,120]
[391727934,1760754651893,-151.0,0.00037279,120]
[391727935,1760754651902,-389.687032,0.00037279,120]
[391727936,1760754651911,-151.546922,0.00037279,120]
[391727937,1760754651920,-153.345458,0.00037279,120]
[391727938,1760754651929,-151.0,0.00037279,120]
[391727939,1760754651938,-151.0,0.00037279,120]
[391727940,1760754651947,-151.0,0.00037279,120]
[391727941,1760754651956,-389.687032,0.00037279,120]
[391727942,1760754651966,-153.345458,0.00037279,120]
[391727943,1760754651974,-161.52306,0.00037279,120]
[391727944,1760754651983,-151.0,0.00037279,120]
[391727945,1760754651992,-153.345458,0.00037279,120]
[391727946,1760754652001,-151.0,0.00037279,120]
[391727947,1760754652012,-151.0,0.00037279,120]
[391727948,1760754652021,-153.345458,0.00037279,120]
[391727949,1760754652030,-151.0,0.00037279,120]
[391727950,1760754652039,-151.787228,0.00037279,120]
[391727951,1760754652050,-151.0,0.00037279,120]
[391727952,1760754652059,-151.0,0.00037279,120]
[391727953,1760754652068,-151.0,0.00037279,120]
[391727954,1760754652078,-151.0,0.00037279,120]
[391727955,1760754652088,-151.0,0.00037279,120]
[391727956,1760754652097,-42043.9092106,0.00037279,3]
[391727957,1760754652107,-151.0,0.00037289,120]
[391727958,1760754652116,-151.0,0.00037289,120]
[391727959,1760754652126,-151.0,0.00037289,120]
[391727960,1760754652135,-151.0,0.00037289,120]
[391727961,1760754652144,-151.0,0.00037289,120]
[391727962,1760754652154,-151.0,0.00037289,120]
[391727963,1760754652164,-151.0,0.00037289,120]
[391727964,1760754652173,-151.0,0.00037289,120]
[391727965,1760754652183,-151.0,0.00037289,15]
[391727966,1760754652192,-151.0,0.00037289,15]
[391727967,1760754652202,-151.0,0.00037289,120]
[391727968,1760754652211,-151.486436,0.00037289,120]
[391727969,1760754652221,-151.0,0.00037289,120]
[391727970,1760754652230,-151.0,0.00037289,120]
[391727971,1760754652239,-151.0,0.00037289,120]
[391727972,1760754652248,-151.0,0.00037289,120]
[391727973,1760754652257,-151.0,0.00037289,120]
[391727974,1760754652265,-151.0,0.00037289,120]
[391727975,1760754652274,-151.0,0.00037289,120]
[391727976,1760754652284,-151.0,0.00037289,120]
[391727977,1760754652292,-156.669104,0.00037289,120]
[391727978,1760754652302,-151.0,0.00037289,120]
[391727979,1760754652311,-151.0,0.00037289,120]
[391727980,1760754652321,-151.0,0.00037289,120]
[391727981,1760754652330,-706.27428642,0.00037289,2]
[391727982,1760754652338,-151.0,0.00037289,120]
[391727983,1760754652347,-151.0,0.00037289,120]
[391727984,1760754652356,-151.0,0.00037289,120]
[391727985,1760754652365,-151.31035981,0.00037289,120]
[391727986,1760754652374,-151.0,0.00037289,30]
[391727987,1760754652383,-151.0,0.00037289,120]
[391727988,1760754652392,-151.0,0.00037289,120]
[391727989,1760754652401,-151.0,0.00037289,120]
[391727990,1760754652410,-151.0,0.00037289,120]
[391727991,1760754652548,-151.0,0.00037289,120]
[391727992,1760754652558,-151.0,0.00037289,120]
[391727993,1760754652567,-151.0,0.00037289,120]
[391727994,1760754652576,-151.0,0.00037289,120]
[391727995,1760754652586,-151.0,0.00037289,120]
[391727996,1760754652595,-151.0,0.00037289,120]
[391727997,1760754652604,-152.615496,0.00037289,120]
[391727998,1760754652614,-151.0,0.00037289,120]
[391727999,1760754652623,-152.615496,0.00037289,120]
[391728000,1760754652633,-152.615496,0.00037289,120]
[391728001,1760754652642,-152.615496,0.00037289,120]
[391728002,1760754652652,-151.0,0.00037289,120]
[391728003,1760754652662,-151.0,0.00037289,120]
[391728004,1760754652671,-151.0,0.00037289,120]
[391728005,1760754652680,-313.060149,0.00037289,120]
[391728006,1760754652689,-313.060149,0.00037289,120]
[391728007,1760754652699,-313.060149,0.00037289,120]
[391728008,1760754652709,-313.060149,0.00037289,120]
[391728009,1760754652718,-153.423251,0.00037289,120]
[391728010,1760754652729,-153.423251,0.00037289,120]
[391728011,1760754652740,-153.423251,0.00037289,120]
[391728012,1760754652750,-153.423251,0.00037289,120]
[391728013,1760754652760,-267.677565,0.00037289,120]
[391728014,1760754652769,-267.677565,0.00037289,120]
[391728015,1760754652778,-267.677565,0.00037289,120]
[391728016,1760754652787,-267.677565,0.00037289,120]
[391728017,1760754652796,-192626.3613,0.00037289,2]
[391728018,1760754652807,-328.34682581,0.0003729,2]
[391728019,1760754652818,-150.0,0.00037293,7]
[391728020,1760754652827,-1425.0,0.00037295,2]
[391728021,1760754652836,-1000.0,0.00037297,7]
[391728022,1760754652846,-158.0,0.000373,120]
[391728023,1760754652858,-150.0,0.0003734,7]
[391728024,1760754652867,-150.0,0.0003734,7]
[391728025,1760754652876,-150.0,0.0003734,7]
[391728026,1760754652885,-1425.0,0.00037343,2]
[391728027,1760754652894,-152.0,0.00037375,4]
[391728028,1760754652903,-151.0,0.00037379,120]
[391728029,1760754652912,-151.0,0.00037379,120]
[391728030,1760754652921,-151.0,0.00037379,120]
[391728031,1760754652930,-389.687032,0.00037379,120]
[391728032,1760754652939,-389.687032,0.00037379,120]
[391728033,1760754652947,-151.0,0.00037379,120]
[391728034,1760754652956,-151.0,0.00037379,120]
[391728035,1760754652965,-151.0,0.00037379,120]
[391728036,1760754652974,-389.687032,0.00037379,120]
[391728037,1760754652984,-153.345458,0.00037379,120]
[391728038,1760754652994,-151.0,0.00037379,120]
[391728039,1760754653004,-151.0,0.00037379,120]
[391728040,1760754653013,-151.0,0.00037379,120]
[391728041,1760754653024,-389.687032,0.00037379,120]
[391728042,1760754653034,-153.345458,0.00037379,120]
[391728043,1760754653044,-151.0,0.00037379,120]
[391728044,1760754653058,-153.345458,0.00037379,120]
[391728045,1760754653068,-151.0,0.00037379,120]
[391728046,1760754653077,-151.0,0.00037379,120]
[391728047,1760754653087,-153.345458,0.00037379,120]
[391728048,1760754653096,-220.39323,0.00037379,120]
[391728049,1760754653107,-151.0,0.00037379,120]
[391728050,1760754653116,-152.561865,0.00037379,120]
[391728051,1760754653126,-152.323838,0.00037379,120]
[391728052,1760754653135,-151.0,0.00037379,120]
[391728053,1760754653146,-151.0,0.00037379,120]
[391728054,1760754653155,-8776.13483236,0.00037379,120]
[391728055,1760754653165,-151.0,0.0003738,2]
[391728056,1760754653175,-151.0,0.0003738,2]
[391728057,1760754653185,-389.77064177,0.0003738,2]
[391728058,1760754653195,-150.0,0.00037384,7]
[391728059,1760754653205,-1000.0,0.00037388,7]
[391728060,1760754653215,-202.414273,0.00037389,120]
[391728061,1760754653225,-160.861552,0.00037389,120]
[391728062,1760754653235,-151.0,0.00037389,120]
[391728063,1760754653244,-151.0,0.00037389,120]
[391728064,1760754653254,-151.0,0.00037389,120]
[391728065,1760754653263,-151.0,0.00037389,120]
[391728066,1760754653274,-151.0,0.00037389,15]
[391728067,1760754653283,-151.0,0.00037389,15]
[391728068,1760754653293,-152.418954,0.00037389,120]
[391728069,1760754653303,-151.0,0.00037389,120]
[391728070,1760754653312,-151.0,0.00037389,120]
[391728071,1760754653323,-151.0,0.00037389,120]
[391728072,1760754653333,-151.0,0.00037389,120]
[391728073,1760754653343,-278.92604,0.00037389,120]
[391728074,1760754653352,-151.0,0.00037389,120]
[391728075,1760754653361,-151.806957,0.00037389,120]
[391728076,1760754653371,-151.0,0.00037389,120]
[391728077,1760754653380,-151.0,0.00037389,120]
[391728078,1760754653392,-151.0,0.00037389,120]
[391728079,1760754653401,-151.0,0.00037389,120]
[391728080,1760754653411,-151.0,0.00037389,120]
[391728081,1760754653420,-151.0,0.00037389,120]
[391728082,1760754653430,-389.687032,0.00037389,120]
[391728083,1760754653439,-151.0,0.00037389,120]
[391728084,1760754653448,-389.687032,0.00037389,120]
[391728085,1760754653460,-151.0,0.00037389,120]
[391728086,1760754653475,-389.687032,0.00037389,120]
[391728087,1760754653485,-151.0,0.00037389,120]
[391728088,1760754653495,-153.345458,0.00037389,120]
[391728089,1760754653504,-151.0,0.00037389,120]
[391728090,1760754653515,-151.0,0.00037389,120]
[391728091,1760754653524,-151.0,0.00037389,120]
[391728092,1760754653533,-389.687032,0.00037389,120]
[391728093,1760754653542,-153.345458,0.00037389,120]
[391728094,1760754653552,-151.0,0.00037389,120]
[391728095,1760754653562,-153.345458,0.00037389,120]
[391728096,1760754653571,-151.592104,0.00037389,120]
[391728097,1760754653580,-173.336532,0.00037389,120]
[391728098,1760754653589,-153.345458,0.00037389,120]
[391728099,1760754653599,-165.217479,0.00037389,120]
[391728100,1760754653609,-151.0,0.00037389,14]
[391728101,1760754653618,-322.6107,0.00037389,14]
[391728102,1760754653628,-334.5472959,0.00037389,14]
[391728103,1760754653637,-151.0,0.00037389,120]
[391728104,1760754653646,-346.92554585,0.00037389,14]
[391728105,1760754653656,-359.76179104,0.00037389,14]
[391728106,1760754653666,-151.0,0.00037389,120]
[391728107,1760754653675,-222.96517767,0.00037389,14]
[391728108,1760754653684,-218.69614647,0.00037389,14]
[391728109,1760754653694,-1000.0,0.00037389,14]
[391728110,1760754653703,-155.84700056,0.00037389,14]
[391728111,1760754653712,-250.0,0.00037389,14]
[391728112,1760754653722,-1000.0,0.00037389,14]
[391728113,1760754653731,-151.0,0.00037389,120]
[391728114,1760754653741,-1000.0,0.00037389,14]
[391728115,1760754653750,-250.0,0.00037389,14]
[391728116,1760754653759,-1000.0,0.00037389,14]
[391728117,1760754653769,-250.0,0.00037389,14]
[391728118,1760754653779,-1000.0,0.00037389,14]
[391728119,1760754653788,-721.12765535,0.00037389,14]
[391728120,1760754653798,-250.0,0.00037389,14]
[391728121,1760754653810,-9552.16786547,0.00037389,14]
[391728122,1760754653820,-600.0,0.00037389,14]
[391728123,1760754653830,-747.8093786,0.00037389,14]
[391728124,1760754653841,-1000.0,0.00037389,14]
[391728125,1760754653851,-1000.0,0.00037389,14]
[391728126,1760754653860,-9905.5980765,0.00037389,14]
[391728127,1760754653870,-286.59747576,0.00037389,14]
[391728128,1760754653881,-600.0,0.00037389,14]
[391728129,1760754653890,-1000.0,0.00037389,14]
[391728130,1760754653899,-775.47832561,0.00037389,14]
[391728131,1760754653909,-1000.0,0.00037389,14]
[391728132,1760754653920,-151.0,0.00037389,120]
[391728133,1760754653929,-600.0,0.00037389,14]
[391728134,1760754653939,-10272.10520533,0.00037389,14]
[391728135,1760754653948,-152.21356696,0.00037389,14]
[391728136,1760754653958,-1000.0,0.00037389,14]
[391728137,1760754653967,-1000.0,0.00037389,14]
[391728138,1760754653976,-237.44907515,0.00037389,14]
[391728139,1760754653986,-600.0,0.00037389,14]
[391728140,1760754653996,-10652.17309792,0.00037389,14]
[391728141,1760754654006,-1000.0,0.00037389,14]
[391728142,1760754654016,-1000.0,0.00037389,14]
[391728143,1760754654026,-600.0,0.00037389,14]
[391728144,1760754654036,-11046.30350255,0.00037389,14]
[391728145,1760754654046,-1000.0,0.00037389,14]
[391728146,1760754654056,-1000.0,0.00037389,14]
[391728147,1760754654066,-11455.01673214,0.00037389,14]
[391728148,1760754654076,-152.518088,0.00037389,120]
[391728149,1760754654086,-600.0,0.00037389,14]
[391728150,1760754654095,-1000.0,0.00037389,14]
[391728151,1760754654105,-1000.0,0.00037389,14]
[391728152,1760754654115,-11878.85235123,0.00037389,14]
[391728153,1760754654125,-152.99891866,0.00037389,14]
[391728154,1760754654135,-600.0,0.00037389,14]
[391728155,1760754654144,-1000.0,0.00037389,14]
[391728156,1760754654154,-12318.36988823,0.00037389,14]
[391728157,1760754654163,-600.0,0.00037389,14]
[391728158,1760754654173,-1000.0,0.00037389,14]
[391728159,1760754654183,-12774.14957409,0.00037389,14]
[391728160,1760754654192,-600.0,0.00037389,14]
[391728161,1760754654203,-1000.0,0.00037389,14]
[391728162,1760754654212,-13246.79310833,0.00037389,14]
[391728163,1760754654222,-600.0,0.00037389,14]
[391728164,1760754654232,-1000.0,0.00037389,14]
[391728165,1760754654242,-13736.92445334,0.00037389,14]
[391728166,1760754654252,-1000.0,0.00037389,14]
[391728167,1760754654263,-301.10502822,0.00037389,14]
[391728168,1760754654272,-3000.0,0.00037389,14]
[391728169,1760754654282,-152.452727,0.00037389,30]
[391728170,1760754654291,-3113.19260932,0.00037389,14]
[391728171,1760754654300,-1000.0,0.00037389,14]
[391728172,1760754654310,-296.94724852,0.00037389,14]
[391728173,1760754654327,-152.44227839,0.00037389,14]
[391728174,1760754654337,-151.0,0.00037389,14]
[391728175,1760754654347,-1000.0,0.00037389,14]
[391728176,1760754654356,-695.96744475,0.00037389,14]
[391728177,1760754654365,-1000.0,0.00037389,14]
[391728178,1760754654374,-250.0,0.00037389,14]
[391728179,1760754654383,-151.0,0.00037389,120]
[391728180,1760754654393,-1000.0,0.00037389,14]
[391728181,1760754654404,-151.0,0.00037389,120]
[391728182,1760754654413,-1000.0,0.00037389,14]
[391728183,1760754654423,-250.0,0.00037389,14]
[391728184,1760754654433,-151.913936,0.00037389,120]
[391728185,1760754654442,-1000.0,0.00037389,14]
[391728186,1760754654451,-250.0,0.00037389,14]
[391728187,1760754654461,-151.0,0.00037389,120]
[391728188,1760754654471,-151.0,0.00037389,120]
[391728189,1760754654479,-1000.0,0.00037389,14]
[391728190,1760754654492,-250.0,0.00037389,14]
[391728191,1760754654502,-1000.0,0.00037389,14]
[391728192,1760754654511,-250.0,0.00037389,14]
[391728193,1760754654521,-1000.0,0.00037389,14]
[391728194,1760754654530,-151.0,0.00037389,120]
[391728195,1760754654539,-1000.0,0.00037389,14]
[391728196,1760754654548,-250.0,0.00037389,14]
[391728197,1760754654557,-617.86639973,0.00037389,14]
[391728198,1760754654567,-250.0,0.00037389,14]
[391728199,1760754654576,-250.0,0.00037389,14]
[391728200,1760754654585,-250.0,0.00037389,14]
[391728201,1760754654595,-500.0,0.00037389,14]
[391728202,1760754654604,-250.0,0.00037389,14]
[391728203,1760754654613,-500.0,0.00037389,14]
[391728204,1760754654622,-250.0,0.00037389,14]
[391728205,1760754654631,-500.0,0.00037389,14]
[391728206,1760754654639,-500.0,0.00037389,14]
[391728207,1760754654648,-250.0,0.00037389,14]
[391728208,1760754654657,-500.0,0.00037389,14]
[391728209,1760754654666,-250.0,0.00037389,14]
[391728210,1760754654675,-500.0,0.00037389,14]
[391728211,1760754654684,-250.0,0.00037389,14]
[391728212,1760754654693,-500.0,0.00037389,14]
[391728213,1760754654702,-250.0,0.00037389,14]
[391728214,1760754654711,-277.35679052,0.00037389,14]
[391728215,1760754654721,-151.0,0.00037389,120]
[391728216,1760754654730,-151.0,0.00037389,120]
[391728217,1760754654739,-500.0,0.00037389,14]
[391728218,1760754654748,-250.0,0.00037389,14]
[391728219,1760754654758,-287.61899177,0.00037389,14]
[391728220,1760754654767,-500.0,0.00037389,14]
[391728221,1760754654776,-250.0,0.00037389,14]
[391728222,1760754654785,-250.0,0.00037389,14]
[391728223,1760754654794,-298.26089446,0.00037389,14]
[391728224,1760754654803,-500.0,0.00037389,14]
[391728225,1760754654821,-250.0,0.00037389,14]
[391728226,1760754654830,-250.0,0.00037389,14]
[391728227,1760754654840,-151.0,0.00037389,120]
[391728228,1760754654850,-309.29654756,0.00037389,14]
[391728229,1760754654859,-500.0,0.00037389,14]
[391728230,1760754654868,-250.0,0.00037389,14]
[391728231,1760754654877,-250.0,0.00037389,14]
[391728232,1760754654886,-320.74051982,0.00037389,14]
[391728233,1760754654895,-258.08356152,0.00037389,14]
[391728234,1760754654904,-332.60791905,0.00037389,14]
[391728235,1760754654913,-250.0,0.00037389,14]
[391728236,1760754654922,-151.0,0.00037389,120]
[391728237,1760754654931,-344.91441206,0.00037389,14]
[391728238,1760754654940,-250.0,0.00037389,14]
[391728239,1760754654950,-357.6762453,0.00037389,14]
[391728240,1760754654959,-250.0,0.00037389,14]
[391728241,1760754654968,-370.91026638,0.00037389,14]
[391728242,1760754654977,-384.63394623,0.00037389,14]
[391728243,1760754654986,-398.86540225,0.00037389,14]
[391728244,1760754654996,-152.615496,0.00037389,120]
[391728245,1760754655007,-197.362185,0.00037389,120]
[391728246,1760754655016,-152.615496,0.00037389,120]
[391728247,1760754655027,-152.615496,0.00037389,120]
[391728248,1760754655036,-152.615496,0.00037389,120]
[391728249,1760754655046,-151.0,0.00037389,120]
[391728250,1760754655055,-151.0,0.00037389,120]
[391728251,1760754655065,-285.9789,0.00037389,120]
[391728252,1760754655075,-313.060149,0.00037389,120]
[391728253,1760754655084,-313.060149,0.00037389,120]
[391728254,1760754655094,-313.060149,0.00037389,120]
[391728255,1760754655103,-313.060158,0.00037389,120]
[391728256,1760754655113,-153.423251,0.00037389,120]
[391728257,1760754655123,-153.423251,0.00037389,120]
[391728258,1760754655132,-153.423251,0.00037389,120]
[391728259,1760754655142,-153.423248,0.00037389,120]
[391728260,1760754655151,-267.677565,0.00037389,120]
[391728261,1760754655161,-267.677565,0.00037389,120]
[391728262,1760754655171,-267.677565,0.00037389,120]
[391728263,1760754655181,-267.677574,0.00037389,120]
[391728264,1760754655190,-185092.11266156,0.0003739,14]
[391728265,1760754655200,-200.0,0.0003739,2]
[391728266,1760754655209,-151.0,0.0003739,120]
[391728267,1760754655218,-151.0,0.0003739,120]
[391728268,1760754655227,-253.122012,0.0003739,120]
[391728269,1760754655237,-151.0,0.0003739,120]
[391728270,1760754655246,-151.0,0.0003739,30]
[391728271,1760754655255,-151.0,0.0003739,120]
[391728272,1760754655264,-151.0,0.0003739,120]
[391728273,1760754655273,-151.0,0.0003739,120]
[391728274,1760754655282,-247.551598,0.0003739,120]
[391728275,1760754655292,-207.386884,0.0003739,120]
[391728276,1760754655301,-152.132268,0.0003739,120]
[391728277,1760754655311,-151.0,0.0003739,120]
[391728278,1760754655320,-151.0,0.0003739,15]
[391728279,1760754655330,-151.0,0.0003739,15]
[391728280,1760754655339,-151.0,0.0003739,120]
[391728281,1760754655348,-151.0,0.0003739,120]
[391728282,1760754655357,-166.57905,0.0003739,120]
[391728283,1760754655367,-151.0,0.0003739,120]
[391728284,1760754655376,-151.0,0.0003739,120]
[391728285,1760754655385,-151.0,0.0003739,120]
[391728286,1760754655395,-151.0,0.0003739,120]
[391728287,1760754655404,-151.0,0.0003739,120]
[391728288,1760754655415,-151.0,0.0003739,120]
[391728289,1760754655425,-170.077251,0.0003739,120]
[391728290,1760754655434,-151.0,0.0003739,120]
[391728291,1760754655444,-151.0,0.0003739,120]
[391728292,1760754655454,-296.954962,0.0003739,120]
[391728293,1760754655463,-151.0,0.0003739,120]
[391728294,1760754655472,-151.0,0.0003739,120]
[391728295,1760754655482,-151.0,0.0003739,120]
[391728296,1760754655492,-151.0,0.0003739,120]
[391728297,1760754655501,-151.0,0.0003739,120]
[391728298,1760754655511,-152.615496,0.0003739,120]
[391728299,1760754655520,-152.615496,0.0003739,120]
[391728300,1760754655530,-152.615496,0.0003739,120]